Cogmind - Beta 9 @@@ ROGUE MODE // 2019.10.22 @ 21:54:21 // Halloween2019/Abominations Player: Nikolayag Result: Destroyed by Lesser Abomination with Particle Gun Performance ------------- Evolutions (2) 1000 Regions Visited (3) 600 Robots Destroyed (26) 130 Value Destroyed (1162) 1162 Prototype IDs (5) 100 Alien Tech Used (0) 0 Bonus (0) 0 TOTAL SCORE: 2992 Bonus ------- None Cogmind --------- Core Integrity 0/550 Matter 290/300 Energy 280/280 System Corruption 20% Temperature Cool (9) Location -8/Materials Parts ------- Power (1) Cooled Ion Engine Propulsion (3) Light Treads Advanced Treads Utility (5) Improved Cooling System Medium Storage Unit Core Shielding Improved Power Shielding Weapon (2) Inventory (8) Gravmag System Gravmag System Gravmag System Improved Cooling System Improved Cooling System Peak State ------------ Power Cooled Ion Engine Propulsion Gravmag System Gravmag System Gravmag System Utility Improved Cooling System Improved Cooling System Core Shielding Improved Power Shielding Improved Light Armor Plating Weapon Plasma Cannon Plasma Cannon Inventory Light Treads Advanced Treads Gravmag System Improved Cooling System [Rating: 39] Favorites ----------- Power Ion Engine Engine Ion Engine Propulsion Light Treads Treads Light Treads Wheel Compact Wheel Hover Unit Gravmag System Flight Unit Improved VTOL Module Utility Small Storage Unit Device Improved Cooling System Storage Small Storage Unit Protection Core Shielding Weapon Assault Rifle Energy Gun Small Laser Energy Cannon Plasma Cannon Ballistic Gun Assault Rifle Launcher Grenade Launcher Build | -11 -10 -9 -8 ------- Run | Scr Mat Mat Mat Slots Evolved 4 | . . 2 2 Power . | . . . . Propulsion 1 | . . . 1 Utility 3 | . . 2 1 Weapon . | . . . . Parts Attached 49 | 6 5 20 18 Power 6 | 1 . 3 2 Engine 6 | 1 . 3 2 Core . | . . . . Reactor . | . . . . Propulsion 15 | 2 . 6 7 Treads 6 | 1 . 3 2 Leg . | . . . . Wheel 5 | 1 . 3 1 Hover 3 | . . . 3 Flight 1 | . . . 1 Utility 10 | 1 2 2 5 Device 2 | . . . 2 Storage 4 | 1 2 . 1 Processor . | . . . . Hackware . | . . . . Protection 4 | . . 2 2 Artifact . | . . . . Weapon 18 | 2 3 9 4 Energy Gun 4 | . 1 3 . Energy Cannon 4 | . . 1 3 Ballistic Gun 8 | 2 2 4 . Ballistic Cannon . | . . . . Launcher 2 | . . 1 1 Special Weapon . | . . . . Impact Weapon . | . . . . Slashing Weapon . | . . . . Piercing Weapon . | . . . . Special Melee Weapon . | . . . . Unidentified Prototypes 5 | . . 3 2 Parts Lost 20 | . . 16 4 Power 2 | . . 2 . Propulsion 9 | . . 6 3 Utility 1 | . . . 1 Weapon 8 | . . 8 . Highest Loss Streak 5 | . . 5 2 Average Slot Usage (%) 78 | . 98 80 62 Engine 8 | . 14 8 5 Treads 9 | . 14 10 5 Wheel 8 | . 14 10 1 Hover 2 | . . . 9 Device 1 | . . . 5 Storage 16 | . 26 21 2 Protection 11 | . . 10 19 Energy Gun 2 | . 1 4 . Energy Cannon 4 | . . 3 9 Ballistic Gun 10 | . 26 10 . Naked Turns . | . . . . Heaviest Build 49 | 12 44 49 38 Greatest Support 42 | 20 16 20 42 Greatest Overweight (x) 4 | . 2 4 1 Average Overweight (x) 1 | . . 2 . Largest Inventory Capacity 14 | 6 14 14 8 Average Capacity 10 | 4 10 13 4 Most Carried 9 | 6 8 9 5 Average Carried 5 | 3 7 6 3 Final Capacity 8 | . . . 8 Final Carried 5 | . . . 5 Class Distribution -------------------- 74% | Mutant 25% | Scavenger-Mutant Dominant Class ---------------- Mutant | -10/Materials Mutant | -9/Materials Mutant | -8/Materials Resources | -11 -10 -9 -8 ----------- Run | Scr Mat Mat Mat Matter Collected 1020 | 177 . 667 176 Remotely . | . . . . Salvage Created 1205 | 63 39 970 133 Parts 57 | 2 3 45 7 Haulers Intercepted 1 | . . 1 . Recyclers Shooed . | . . . . Parts Field Recycled . | . . . . Retrieved Matter . | . . . . Parts Self-Destructed . | . . . . Prevented . | . . . . Kills | -11 -10 -9 -8 ------- Run | Scr Mat Mat Mat Combat Hostiles Destroyed 21 | . 1 18 2 Guns 13 | . 1 12 . Cannons 3 | . . 1 2 AOE 5 | . . 5 . Classes Destroyed 8 | 1 1 6 . Worker 1 | . . 1 . Builder 1 | . . 1 . Hauler 1 | . . 1 . Recycler 2 | 1 . 1 . Grunt 5 | . 1 4 . Duelist 1 | . . 1 . Sentry 1 | . . 1 . Abomination 14 | . . 12 2 Best Kill Streak 5 | 1 1 5 1 Combat Bots Only 4 | . 1 4 1 Max Kills in Single Turn 2 | 1 1 2 1 Gunslinging . | . . . . Exploded 1 | . . 1 . Melee . | . . . . Uniques/NPCs Destroyed . | . . . . Combat | -11 -10 -9 -8 -------- Run | Scr Mat Mat Mat Damage Taken 5748 | . 272 2398 3078 Core 909 | . 52 296 561 Absorbed by Shields . | . . . . Core Remaining (%) 68 | 100 79 26 . Volleys Fired 108 | 2 9 77 20 Largest 2 | 2 2 2 2 Hottest 160 | 40 40 91 160 Shots Fired 197 | 4 18 135 40 Gun 128 | 4 18 106 . Cannon 60 | . . 20 40 Launcher 9 | . . 9 . Special . | . . . . Kinetic 104 | 4 18 82 . Thermal 76 | . . 36 40 Explosive 9 | . . 9 . Electromagnetic 8 | . . 8 . Robot Hit Streak 11 | 2 4 9 11 Robot Miss Streak 5 | 1 3 5 4 Penetration Max . | . . . . Secondary Targets 3 | . . 3 . Max Gunslinging Chain 1 | . . 1 . Shots Hit Robots 141 | 3 10 102 26 Core Hits 67 | 2 2 55 8 Critical Hits 3 | . . 3 . Critical Kills 1 | . . 1 . Critical Parts Destroyed 2 | . . 2 . Melee Attacks . | . . . . Impact . | . . . . Slashing . | . . . . Piercing . | . . . . Sneak Attacks . | . . . . Combat Hostiles . | . . . . Follow-up Attacks . | . . . . Damage Inflicted 2935 | 30 91 1980 834 Guns 1011 | 30 91 890 . Cannons 1238 | . . 419 819 Explosions 667 | . . 667 . Melee . | . . . . Ramming 19 | . . 4 15 Kinetic 841 | 30 91 720 . Thermal 1388 | . . 569 819 Explosive 631 | . . 631 . Electromagnetic 56 | . . 56 . Impact . | . . . . Slashing . | . . . . Piercing . | . . . . Highest Corruption 20 | . . 11 20 Average Corruption 7 | . . 6 8 Corruption Purged . | . . . . Effects 42 | . . 16 26 Message Errors 9 | . . 3 6 Matter Fused 4 | . . 2 2 Heat Flow Errors 5 | . . 2 3 Energy Discharges 3 | . . 1 2 Parts Rejected 3 | . . 2 1 Data Loss (minor) 2 | . . 1 1 Data Loss (major) 1 | . . . 1 Misdirections 8 | . . 3 5 Targeting Errors 7 | . . 2 5 Overload Shots . | . . . . Overflow Damage 60 | . . . 60 Projectiles 60 | . . . 60 Explosions . | . . . . Melee . | . . . . Knockbacks . | . . . . Impact . | . . . . Kinetic . | . . . . Secondary . | . . . . Self-Inflicted Damage 54 | . . 49 5 Shots 2 | . . 2 . Rammed 6 | . . 3 3 Targets Rammed 6 | . . 3 3 Kicked . | . . . . Crushed . | . . . . Highest Temperature 615 | . 40 313 615 Average Temperature 124 | . 12 112 155 Received Heat Transfer 912 | . 165 567 180 Effects 4 | . . . 4 Shutdowns 1 | . . . 1 Interference 1 | . . . 1 Short Circuit 1 | . . . 1 Damage (major) 1 | . . . 1 Siege Activations . | . . . . Robots Corrupted . | . . . . Combat Hostiles . | . . . . Parts Fried 1 | . . 1 . Impact Corruptions . | . . . . Robots Melted . | . . . . Combat Hostiles . | . . . . Parts Melted . | . . . . Heat Transferred 716 | . . 366 350 Parts Sabotaged . | . . . . Parts Stolen . | . . . . Parts Stripped . | . . . . Power Chain Reactions . | . . . . Missiles Intercepted . | . . . . Alert | -11 -10 -9 -8 ------- Run | Scr Mat Mat Mat Peak Influence 147 | 5 37 147 34 Average Influence 31 | 1 22 45 16 Maximum Alert Level . | . . . . Low Security (%) 100 | . . . . Level 1 . | . . . . Level 2 . | . . . . Level 3 . | . . . . Level 4 . | . . . . Level 5 . | . . . . High Security . | . . . . Max Security . | . . . . Squads Dispatched 21 | . . 11 10 Investigation 4 | . . 2 2 Extermination . | . . . . Reinforcement 5 | . . 2 3 Assault 12 | . . 7 5 Garrison . | . . . . Intercept . | . . . . Construction Impeded . | . . . . Haulers Reinforced . | . . . . Stealth | -11 -10 -9 -8 --------- Run | Scr Mat Mat Mat Distress Signals 21 | . 1 11 9 Communications Jammed . | . . . . Distress Signals . | . . . . Times Spotted 71 | . 9 30 32 Peak Tracking Total 13 | . 6 9 13 Tactical Retreats 9 | . 1 2 6 Traps | -11 -10 -9 -8 ------- Run | Scr Mat Mat Mat Traps Triggered 4 | . . 3 1 Indirectly 2 | . . 2 . Trap Hack Attempts . | . . . . Triggered . | . . . . Disarmed . | . . . . Reprogrammed . | . . . . Reused . | . . . . Traps Extracted . | . . . . Installed . | . . . . Triggered . | . . . . Machines | -11 -10 -9 -8 ---------- Run | Scr Mat Mat Mat Machines Disabled 2 | . . 2 . Max in Single Turn 1 | . . 1 . Garrison Access 1 | . . . 1 Machines Sabotaged . | . . . . Garrisons Compromised . | . . . . Overloaded Fab Kills . | . . . . Fab Network Shutdowns . | . . . . Hacking | -11 -10 -9 -8 --------- Run | Scr Mat Mat Mat Machines Accessed 3 | . 1 2 . Terminals 3 | . 1 2 . Fabricators . | . . . . Repair Stations . | . . . . Recycling Units . | . . . . Scanalyzers . | . . . . Garrison Access . | . . . . Total Hacks 7 | . 3 4 . Successful 5 | . 1 4 . Failed 2 | . 2 . . Catastrophic . | . . . . Database Lockouts . | . . . . Manual 7 | . 3 4 . Terminals 7 | . 3 4 . Fabricators . | . . . . Repair Stations . | . . . . Recycling Units . | . . . . Scanalyzers . | . . . . Garrison Access . | . . . . Terminal Hacks . | . . . . Fabricator Hacks . | . . . . Repair Station Hacks . | . . . . Recycling Unit Hacks . | . . . . Scanalyzer . | . . . . Garrison Access Hacks . | . . . . Unauthorized Hacks 11 | . 4 7 . Terminals 4 | . 1 3 . Track 2 | . . 2 . Botnet 2 | . 1 1 . Fabricators . | . . . . Repair Stations . | . . . . Recycling Units . | . . . . Scanalyzers . | . . . . Garrison Access . | . . . . Data Cores Recovered . | . . . . Used . | . . . . Hacking Detections 2 | . 1 1 . Full Trace Events . | . . . . Feedback Events . | . . . . Feedback Blocked . | . . . . Robot Schematics Acquired . | . . . . Robots Built . | . . . . Matter . | . . . . Time . | . . . . Total Robot Build Rating . | . . . . Part Schematics Acquired . | . . . . Parts Built . | . . . . Matter . | . . . . Time . | . . . . Total Part Build Rating . | . . . . Parts Repaired . | . . . . Time . | . . . . Parts Recycled . | . . . . Recycled Matter . | . . . . Retrieved Matter . | . . . . Retrieved Components . | . . . . Parts Scanalyzed . | . . . . Part Schematics Acquired . | . . . . Parts Damaged . | . . . . Bothacking | -11 -10 -9 -8 ------------ Run | Scr Mat Mat Mat Used RIF Installer . | . . . . Robots Hacked . | . . . . Non-combat . | . . . . Combat . | . . . . Robot Hacks Applied . | . . . . Relay Couplers Released 1 | . . . 1 Machine Destruction 1 | . . . 1 Robots Rewired . | . . . . Allies Hacked . | . . . . Hacks Repelled . | . . . . Allies | -11 -10 -9 -8 -------- Run | Scr Mat Mat Mat Total Allies . | . . . . Largest Group . | . . . . Highest-Rated Group . | . . . . Highest-Rated Ally . | . . . . Total Orders . | . . . . Ally Attacks . | . . . . Total Damage . | . . . . Kills . | . . . . Allies Corrupted . | . . . . Allies Melted . | . . . . Intel | -11 -10 -9 -8 ------- Run | Scr Mat Mat Mat Robot Analysis Total . | . . . . Derelict Logs Recovered . | . . . . Drone Launches . | . . . . Drone Recoveries . | . . . . Exploration | -11 -10 -9 -8 ------------- Run | Scr Mat Mat Mat Turns Passed 1840 | 71 301 953 515 Spaces Moved 1391 | 48 216 511 616 Core 94 | 2 . 1 91 Treads 219 | 5 . 148 66 Legs . | . . . . Wheels 678 | 41 216 362 59 Hover 223 | . . . 223 Flight 177 | . . . 177 Fastest Speed 35 | 50 100 80 35 Average Speed 98 | 104 108 136 63 Slowest Speed 200 | 160 120 200 165 Overloaded Moves . | . . . . Propulsion Burnouts . | . . . . Robots Hopped 2 | . . . 2 Cave-ins Triggered . | . . . . Exploration Rate (%) 32 | 3 34 45 46 Regions Visited 3 Branch Regions . Pre-discovered Areas . | . . . . Known Exits Taken . | . . . . Unknown Exits Taken 3 | 1 1 1 . Scrap Searched . | . . . . Spaces Dug . | . . . . Terrain Destroyed 72 | . . 62 10 Melee . | . . . . Projectile 10 | . . . 10 AOE 62 | . . 62 . Actions | -11 -10 -9 -8 --------- Run | Scr Mat Mat Mat Total 1640 | 62 268 630 680 Wait 50 | 1 29 12 8 Move 1384 | 47 215 510 612 Hop 2 | . . . 2 Pick Up 23 | 6 5 4 8 Fast Attach 27 | 6 2 8 11 Attach 18 | . . 12 6 Detach 6 | . . 4 2 Swap 5 | . 3 . 2 Drop 11 | . 5 . 6 Fire 108 | 2 9 77 20 Melee . | . . . . Ram 3 | . . 2 1 Kick . | . . . . Crush 3 | . . 1 2 Escape Stasis . | . . . . Rewire . | . . . . Trap . | . . . . Miscellaneous . | . . . . Route ------- -11/Scrapyard -10/Materials -9/Materials -8/Materials (discovered 1 exit: [*Fac]) History --------- Turn | Location | Event 41 | -11/Scrapyard | Discovered new exit (range 16) 72 | -11/Scrapyard | Entered Materials 312 | -10/Materials | Discovered new exit (range 10) 313 | -10/Materials | Build established: Mutant 348 | -10/Materials | Discovered new exit (range 9) 373 | -10/Materials | Entered another Materials area 373 | -9/Materials | Evolved 2 slots: Utility x2 504 | -9/Materials | Discovered new exit (range 16) 510 | -9/Materials | Lost 3 parts (1p2w) 839 | -9/Materials | Discovered new exit (range 13) 1162 | -9/Materials | System corruption reached 10% 1200 | -9/Materials | Core integrity fell below 50% 1272 | -9/Materials | Lost 5 parts (2n3w) 1311 | -9/Materials | Discovered new exit (range 15) 1326 | -9/Materials | Entered another Materials area 1326 | -8/Materials | Evolved 2 slots: Propulsion x1, Utility x1 1336 | -8/Materials | Lost 4 parts (1p2n1w) 1419 | -8/Materials | Core integrity fell below 50% 1696 | -8/Materials | System corruption reached 10% 1767 | -8/Materials | Core integrity fell below 20% 1811 | -8/Materials | Discovered new exit (range 16) 1841 | -8/Materials | Destroyed by Lesser Abomination with Particle Gun Last Messages --------------- 01816_ Unstable Anomaly suddenly flashes brightly. 01816_ Violent ripples tear at the fabric of space around G-47 Trooper. 01816_ G-47 Trooper destroyed. 01817_ MTAZ F,Y/JN0 UXI, 41VY%6= 01820_ Unstable Anomaly suddenly flashes brightly. 01820_ Engulfed by violent ripples tearing at the fabric of space. 01824_ Frozen by Ice Anomaly. 01827_ 44 Matter blinks away. 01830_ Zapped by an electromagnetic arc from EM Anomaly. 01834_ Unstable Anomaly suddenly flashes brightly. 01834_ Lesser Abomination spits out Terrain Scan Processor. 01834_ Lesser Abomination feeds off Hungry Anomaly, taking Imp. Terrain Scan Processor. 01835_ System corrupted: Matter fused (-10). 01835_ Hungry Anomaly eats Aluminum Leg. 01836_ Hungry Anomaly eats Wheel. 01837_ Hungry Anomaly eats Terrain Scan Processor. 01838_ Unstable Anomaly suddenly flashes brightly. 01838_ Hungry Anomaly eats Aluminum Leg. 01838_ Engulfed by violent ripples tearing at the fabric of space. Map ----- +----------------------------------------------------+ | | | | | | | | | | | | | | | | | | | | | | | | | ?????????????????????????????????????????????????? | | ?????????????????????????????????????????????????? | | ?????????????????????????????????????????????????? | | ????????????????????????????????????????????????## | | ????????????????????????????????????????????????# | | ????????????????????????????????????????????????# | | ????????????????????????????????????????????????# | | ????????????????????????????????????????????????# | | ????????????????????????????????????????????????#] | | ????????????????????????????????????????????????#] | | ???????????????????????#####????????????????????## | | ???????????????????????# #?????????????????????? | | ???????????????????????# <%#?????????????????????? | | ???????????????????????#%@ #?????????????????????? | | ???????????????????????+ +?????????????????????? | | ???????????????????????#%% #?????????????????????? | | ???????????????????????# #?????????????????????? | | ????????????########??##% %##????????????????????? | | ????????????# ! ?# % #????????????????????? | | ????????????# # #????????????????????? | | ??????????????? %+ % #????????????????????? | | ????????????????????? #A % #???? ???????????????? | | ???????????????????? # %#???#% ??????????????? | | ???????????????????""?## ##???# %""""??????#### | | ??????????????????""???#A #????# %%"""""?????# | | ???????????????????????# % #????# """""#????# | | ???????????????????????# A #????# %"""""#????# | | ???????????????????????# %#?????? %"%"""#????# | | ???????????????????????#%% #??????? % ??????# | | ??????????????????????##% ##?????###/#####???# | | ??????????????????????# %####### ########## | | ?????????????????????## | | ?????????????????????#% =%! | | ?????????????????????## | | ??????????????????????# %###% % %########## | | ??????????????????????## %##?# #?###??# | | ???????????????????????# %#??#% %#?# # | | ???????????????????????# %%#??# % #?# +% | +----------------------------------------------------+ Best States ------------- Heat Dissipation 85 Energy Generation 14 Energy Capacity 280 Matter Stores 300 Matter Capacity 300 Sight Range 16 Terrain Scan Density 10 Armor Coverage 150 Core Shielding 20 Power Shielding 66 Evasion (%) 63 Recoil Reduction 2 Item Schematics ----------------- None Robot Schematics ------------------ None Fabricated ------------ Nothing Alien Tech Used ----------------- None Achievements -------------- None Challenges ------------ None Game ------ Seed LatentSlugSpear Manual? 0 Play Time 00:21:30 Cumulative 156.7 hours Start 2019.10.22 @ 21:35:56 End 2019.10.22 @ 21:54:21 Sessions 1 Manual Loads 0 Difficulty Rogue Special Mode Halloween2019/Abominations Game No. 153 Rogue 153 Adventurer 0 Explorer 0 Win Type - Total 3 Types 3/0/0/0/0/0/0 Lore% 48 Gallery% 67 Achievement% 42 Wizard Run 0 Options --------- ASCII 0 Keyboard 1 Movement Numpad Keybinds 0 Fullscreen 1 Font 18/SmallcapsGlow Map View 76x50 Tactical HUD 1 Map Filters NONE Filters NONE Steam 1 RUN: 80961357-0be7-4d95-9b6b-a81539acdc87